Workbook

Sheet Рассчитанные
A1: Вид спорта | B1: Турнир | C1: 1 | D1: 2 | E1: Прогноз | F1: Ставка | G1: Коэф. | H1: Выплата | I1: Профит | L1: БК | M1: Количество | N1: Оборот | O1: Выплата | P1: Профит | Q1: РОИ
A2: Баскетбол | B2: ЧЕ | C2: Израиль | D2: Украина | E2: П2 с уч. ОТ | F2: 50 | G2: 3.4 | H2: =IF(J2="+",F2*G2,IF(J2=0,F2,0)) -> 170 | I2: =H2-F2 -> 120 | J2: + | K2: * | L2: MAR | M2: =COUNT(F2:F100000) -> 20 | N2: =SUM(F2:F21) -> 900 | O2: =SUM(H2:H21) -> 899.5 | P2: =SUM(I2:I21) -> -0.5 | Q2: =P2/N2 -> -0.0005555555556 | R2: Все ставки
A3: Баскетбол | B3: ЧЕ | C3: Франция | D3: Великобритания | E3: ТБ 145,5 | F3: 50 | G3: 1.97 | H3: 98.5 | I3: =H3-F3 -> 48.5 | J3: + | L3: MAR | M3: =COUNTIF(K:K,"*") -> 12 | N3: =SUMIF(K:K,"*",F:F) -> 500 | O3: =SUMIF(K:K,"*",H:H) -> 557.5 | P3: =SUMIF(K:K,"*",I:I) -> 57.5 | Q3: =P3/N3 -> 0.115 | R3: Мое творчество
A4: Баскетбол | B4: ЧЕ | C4: Италия | D4: Турция | E4: 1(+5) | F4: 50 | G4: 1.97 | H4: 98.5 | I4: 48.5 | J4: + | L4: MAR | M4: =M2-M3 -> 8 | N4: =N2-N3 -> 400 | O4: 342 | P4: -58 | Q4: =P4/N4 -> -0.145 | R4: Плагиат
A5: Баскетбол | B5: ЧЕ | C5: Литва | D5: Македония | E5: 1(-8) | F5: 50 | G5: 1.97 | H5: =IF(J5="+",F5*G5,IF(J5=0,F5,0)) -> 50 | I5: 0 | J5: 0 | L5: MAR
A6: Баскетбол | B6: ЧЕ | C6: Германия | D6: Бельгия | E6: 1(-5) | F6: 50 | G6: 1.97 | H6: 0 | I6: =H6-F6 -> -50 | J6: - | L6: MAR
A7: Баскетбол | B7: ЧЕ | C7: Германия | D7: Украина | E7: П2 с уч. ОТ | F7: 50 | G7: 2.74 | H7: 137 | I7: 87 | J7: + | K7: * | L7: MAR
A8: Баскетбол | B8: ЧЕ | C8: Бельгия | D8: Великобритания | E8: 1(-5,5) | F8: 50 | G8: 1.97 | H8: 0 | I8: -50 | J8: - | K8: * | L8: MAR
A9: Баскетбол | B9: ЧЕ | C9: Франция | D9: Израиль | E9: 1(-13,5) | F9: 50 | G9: 1.97 | H9: 98.5 | I9: 48.5 | J9: + | K9: * | L9: MAR
A10: Баскетбол | B10: ЧЕ | C10: Черногория | D10: БиГ | E10: ТБ 152,5 | F10: 50 | G10: 1.97 | H10: 0 | I10: -50 | J10: - | K10: * | L10: MAR
A11: Баскетбол | B11: ЧЕ | C11: Франция | D11: Израиль | E11: Т1Б 79 | F11: 30 | G11: 1.9 | H11: 57 | I11: 27 | J11: + | K11: * | L11: MAR
A12: Футбол | B12: отбор к ЧМ | C12: Польша | D12: Черногория | E12: ТБ 2,5 | F12: 50 | G12: 2.3 | H12: 0 | I12: -50 | J12: - | K12: * | L12: MAR
A13: Баскетбол | B13: ЧЕ | C13: Литва | D13: Латвия | E13: Т2Б 71,5 | F13: 30 | G13: 1.9 | H13: 0 | I13: -30 | J13: - | K13: * | L13: MAR
A14: Футбол | B14: отбор к ЧМ | C14: Англия | D14: Молдова | E14: 2(+2,5) | F14: 30 | G14: 2.3 | H14: 0 | I14: -30 | J14: - | K14: * | L14: MAR
A15: Футбол | B15: отбор к ЧМ | C15: Англия | D15: Молдова | E15: Х | F15: 10 | G15: 14 | H15: 0 | I15: -10 | J15: - | K15: * | L15: MAR
A16: Баскетбол | B16: ЧЕ | C16: Черногория | D16: БиГ | E16: Б. Дубльевич Б 9,5 | F16: 50 | G16: 1.9 | H16: 95 | I16: 45 | J16: + | L16: MAR
A17: Футбол | B17: отбор к ЧМ | C17: Словения | D17: Албания | E17: Х2 | F17: 50 | G17: 2.1 | H17: 0 | I17: -50 | J17: - | K17: * | L17: PIN
A18: Баскетбол | B18: ЧЕ | C18: Испания | D18: Чехия | E18: Я. Веселы Б 12,5 | F18: 50 | G18: 2.13 | H18: =IF(J18="+",F18*G18,IF(J18=0,F18,0)) -> 0 | I18: =H18-F18 -> -50 | J18: - | L18: PIN
A19: Футбол | B19: отбор к ЧМ | C19: Украина | D19: Сан Марино | E19: 1(-5) | F19: 50 | G19: 1.9 | H19: 95 | I19: 45 | J19: + | K19: * | L19: BC
A20: Баскетбол | B20: ЧЕ | C20: Испания | D20: Чехия | E20: Я. Веселы Б 12,5 | F20: 50 | G20: 1.85 | H20: 0 | I20: -50 | J20: - | L20: BC
A21: Баскетбол | B21: ЧЕ | C21: Испания | D21: Словения | E21: 1(-7,5) | F21: 50 | G21: 1.91 | H21: 0 | I21: -50 | J21: - | L21: WH

Sheet Текущие
A1: Вид спорта | B1: Турнир | C1: 1 | D1: 2 | E1: Прогноз | F1: Ставка | G1: Коэф. | H1: БК
A2: Футбол | B2: УПЛ | C2: Карпаты | D2: Шахтер | E2: П1 | F2: 10 | G2: 14 | H2: MAR
A3: Футбол | B3: УПЛ | C3: Арсенал | D3: Волынь | E3: П2 | F3: 394.5 | G3: 4.65 | H3: MAR
A4: Футбол | B4: отбор к ЧМ | C4: Украина | D4: Англия | E4: П1 | F4: 95 | G4: 3 | H4: MAR
A5: Баскетбол | B5: ЧЕ | C5: Украина | D5: Франция | E5: 1(+12,5) | F5: 50 | G5: 2.1 | H5: PIN
A6: Баскетбол | B6: ЧЕ | C6: Германия | D6: Бельгия | E6: 1(-5) | F6: 50 | G6: 1.97 | H6: MAR
F7: =SUM(F2:F6) -> 599.5
